bitfinex/quotes_SOLUSD_20250917
["timestamp","ask_amount","ask_price","bid_price","bid_amount"]
[1758086037245,19.90255462,234.46,234.45,0.06]
[1758086038233,52.90255462,234.46,234.45,0.06]
[1758086040950,51.58071385,234.46,234.45,0.06]
[1758086043756,18.58071385,234.46,234.45,0.06]
[1758086043960,51.58071385,234.46,234.45,0.06]
[1758086047368,52.90255462,234.46,234.45,1e-08]
[1758086047978,53.18687776,234.46,234.45,1e-08]
[1758086050680,13.59559401,234.41,234.4,0.06]
[1758086050894,40.91743478,234.39,234.38,0.06]
[1758086051179,39.59559401,234.39,234.38,0.06]
[1758086051378,73.91743478,234.39,234.38,0.06]
[1758086052366,78.18382839,234.39,234.38,0.06]
[1758086053474,78.85382839,234.39,234.38,0.06]
[1758086056070,4.26566565,234.43,234.38,0.73]
[1758086056277,33.0,234.42,234.38,2.05184077]
[1758086056474,33.0,234.41,234.39,0.67]
[1758086058397,37.26605382,234.41,234.39,0.67]
[1758086059296,33.0,234.42,234.39,0.67]
[1758086059985,32.98,234.42,234.39,0.67]
[1758086060382,4.2660296,234.41,234.39,0.67]
[1758086060780,135.96556285,234.44,234.39,0.67]
[1758086061013,135.96556285,234.44,234.4,1.32184077]
[1758086061171,135.96556285,234.44,234.41,0.67]
[1758086061367,135.96556285,234.44,234.39,1.99184077]
[1758086061669,32.98,234.43,234.39,0.67]
[1758086061873,34.97184077,234.43,234.38,0.06]
[1758086062095,34.97184077,234.43,234.39,0.67]
[1758086062793,4.26584762,234.42,234.39,0.67]
[1758086063108,4.26584762,234.42,234.38,0.06]
[1758086063109,32.98,234.41,234.38,0.06]
[1758086063277,32.98,234.41,234.38,0.73]
[1758086063478,32.98,234.41,234.39,0.67]
[1758086064286,32.98,234.41,234.4,0.67]
[1758086065194,142.36370926,234.44,234.4,0.67]
[1758086065396,32.98,234.43,234.4,0.67]
[1758086065694,37.24576224,234.43,234.4,0.67]
[1758086066094,4.26576224,234.43,234.4,0.67]
[1758086066290,164.68,234.44,234.4,1.99184077]
[1758086066596,131.7,234.44,234.42,1.32184077]
[1758086066805,131.7,234.44,234.43,0.66]
[1758086067188,4.29512215,234.46,234.43,0.66]
[1758086067594,0.03,234.46,234.43,0.66]
[1758086068095,0.03,234.46,234.44,0.66]
[1758086069408,0.03,234.46,234.42,1.32184077]
[1758086069588,0.03,234.46,234.44,0.66]
[1758086070499,0.03,234.46,234.42,1.32184077]
[1758086070715,0.72,234.46,234.42,0.66]
[1758086071295,2.01184077,234.45,234.4,0.66]
[1758086071499,2.01184077,234.45,234.41,0.66]
[1758086072306,4.2654837,234.44,234.41,0.66]
[1758086075399,4.2654837,234.44,234.42,0.66]
[1758086076397,4.2654837,234.44,234.39,1.32184077]
[1758086076598,4.2654837,234.44,234.4,0.66]
[1758086076989,4.2654837,234.44,234.41,0.66]
[1758086077189,131.7,234.45,234.41,0.66]
[1758086078606,135.96535087,234.45,234.42,0.66]
[1758086079408,135.96535087,234.45,234.39,1.32184077]
[1758086079409,136.65535087,234.45,234.39,1.32184077]
[1758086079618,136.65535087,234.45,234.4,0.66]
[1758086080495,4.26566565,234.43,234.4,0.66]
[1758086080822,7.13238747,234.43,234.4,0.66]
[1758086080987,4.26566565,234.43,234.4,0.66]
[1758086081190,7.13238747,234.43,234.4,0.66]
[1758086081501,4.26566565,234.43,234.4,0.66]
[1758086081691,7.13238747,234.43,234.4,0.66]
[1758086081891,4.26566565,234.43,234.4,0.66]
[1758086082202,7.13238747,234.43,234.39,1.32184077]
[1758086082408,4.26566565,234.43,234.4,0.66]
[1758086082609,7.13238747,234.43,234.41,0.66]
[1758086082807,4.26566565,234.43,234.41,0.66]
[1758086083009,7.13238747,234.43,234.41,0.66]
[1758086083313,4.26566565,234.43,234.42,0.66]
[1758086083489,2.86672182,234.43,234.42,0.66]
[1758086083696,4.265485,234.44,234.42,0.66]
[1758086084311,7.13201709,234.44,234.42,0.66]
[1758086084511,2.86653209,234.44,234.4,0.66]
[1758086084699,131.7,234.45,234.41,27.98184077]
[1758086085009,2.86631619,234.44,234.42,0.66]
[1758086086322,131.7,234.45,234.43,1.32184077]
[1758086086523,131.7,234.45,234.44,0.66]
[1758086089714,0.03,234.46,234.44,1.32184077]
[1758086090029,0.69,234.45,234.4,0.66]
[1758086090324,2.89563367,234.46,234.41,1.32184077]
[1758086090525,2.89563367,234.46,234.42,1.98184077]
[1758086090823,2.89563367,234.46,234.43,0.66]
[1758086091312,0.69,234.45,234.41,1.32184077]
[1758086091503,0.72,234.45,234.41,1.98184077]
[1758086091702,0.72,234.45,234.41,1.32184077]
[1758086092029,0.03,234.45,234.42,0.66]
[1758086092606,0.03,234.45,234.4,4.32619648]
[1758086092809,0.72,234.45,234.41,2.72564558]
[1758086093203,0.03,234.45,234.42,0.66]
[1758086093806,0.03,234.45,234.42,2.72564558]
[1758086097410,2.8964992,234.45,234.42,2.06564558]
[1758086097613,2.8964992,234.45,234.42,2.75564558]
[1758086098326,0.03,234.45,234.42,2.75564558]
[1758086098838,0.03,234.45,234.43,0.69]
[1758086099121,2.89735203,234.45,234.43,0.69]
[1758086099425,0.03,234.45,234.43,0.69]
[1758086100327,0.03,234.45,234.44,0.69]
[1758086100633,2.89947943,234.45,234.44,0.69]
[1758086100816,0.03,234.45,234.44,2.75564558]
[1758086102332,0.03,234.45,234.44,7.02112928]
[1758086103423,0.03,234.45,234.44,39.96112928]
[1758086103638,0.03,234.45,234.44,40.24545242]
[1758086104528,0.03,234.45,234.44,2.75564558]
[1758086105137,0.03,234.45,234.44,7.02112928]
[1758086105514,0.03,234.45,234.44,4.9554837]
[1758086105740,0.03,234.45,234.44,7.30545242]
[1758086107141,0.03,234.45,234.44,2.75564558]
[1758086107459,0.03,234.45,234.44,35.69564558]
[1758086107612,0.03,234.45,234.43,35.00564558]
[1758086107821,0.03,234.45,234.43,2.06564558]
[1758086108148,0.75,234.45,234.41,0.69]
[1758086108328,0.75,234.45,234.41,2.75564558]
[1758086109133,0.03,234.45,234.42,0.69]
[1758086109436,0.03,234.45,234.43,2.06564558]
[1758086109609,0.03,234.45,234.43,2.75564558]
[1758086110111,0.03,234.45,234.43,2.06564558]
[1758086110926,0.03,234.45,234.44,0.69]
[1758086111352,0.03,234.45,234.44,2.75564558]
[1758086112427,0.03,234.45,234.44,39.96112928]
[1758086112627,0.03,234.45,234.44,7.02112928]
[1758086112843,0.03,234.45,234.44,39.96112928]
[1758086113855,0.03,234.45,234.44,35.00564558]
[1758086114346,0.03,234.45,234.44,35.69564558]
[1758086115639,0.03,234.45,234.44,35.97996872]
[1758086116041,0.03,234.45,234.44,49.57556273]
[1758086118865,0.03,234.45,234.44,49.55556273]
[1758086120036,0.03,234.45,234.44,0.97432314]
[1758086120238,0.03,234.45,234.44,61.26996872]
[1758086120439,0.03,234.45,234.44,61.95996872]
[1758086122474,0.03,234.45,234.44,29.03996872]
[1758086122662,0.03,234.45,234.44,61.95996872]
[1758086124349,0.03,234.45,234.44,35.95996872]
[1758086125259,0.03,234.45,234.44,36.45996872]
[1758086127467,0.03,234.45,234.44,50.05556273]
[1758086127852,0.03,234.46,234.45,18.14521892]
[1758086128052,0.03,234.46,234.45,20.8908645]
[1758086128453,0.03,234.47,234.45,20.8908645]
[1758086128659,0.03,234.48,234.47,0.28432314]
[1758086128850,0.03,234.48,234.47,20.21050067]
[1758086129164,0.03,234.48,234.47,20.89050067]
[1758086130182,0.03,234.49,234.48,39.59559401]
[1758086130353,0.67,234.56,234.48,73.47991715]
[1758086130549,0.67,234.56,234.49,16.34123959]
[1758086131278,0.67,234.56,234.49,20.60581377]
[1758086132277,4.26240773,234.61,234.49,20.60581377]
[1758086132478,0.67,234.55,234.49,20.60581377]
[1758086133068,0.67,234.54,234.49,20.60581377]
[1758086133993,0.67,234.54,234.49,19.92581377]
[1758086134382,0.67,234.54,234.49,20.60581377]
[1758086135258,0.67,234.54,234.49,33.65427954]
[1758086136874,0.67,234.54,234.49,31.58863396]
[1758086137085,0.67,234.54,234.49,33.65427954]
[1758086137499,4.26276314,234.59,234.49,32.97427954]
[1758086137690,0.67,234.53,234.49,32.97427954]
[1758086137895,0.67,234.55,234.49,33.65427954]
[1758086138078,0.67,234.55,234.49,66.55427954]
[1758086138573,0.67,234.54,234.49,66.55427954]
[1758086142402,0.67,234.56,234.49,66.55427954]
[1758086142918,4.26258546,234.6,234.49,66.55427954]
[1758086143121,0.67,234.54,234.49,66.55427954]
[1758086143405,0.7,234.5,234.45,17.86089578]
[1758086143620,0.03,234.5,234.48,2.06564558]
[1758086143784,0.67,234.49,234.48,2.06564558]
[1758086143983,0.67,234.49,234.48,34.96564558]
[1758086145293,0.67,234.49,234.48,39.23040163]
[1758086145902,0.03,234.5,234.48,39.23040163]
[1758086146109,0.03,234.5,234.49,2.06564558]
[1758086146285,0.03,234.5,234.49,34.96564558]
[1758086146611,0.03,234.5,234.49,35.24996872]
[1758086147078,0.03,234.5,234.49,2.34996872]
[1758086147285,0.03,234.5,234.49,39.5145429]
[1758086148723,0.7,234.5,234.49,39.5145429]
[1758086148923,0.7,234.5,234.49,39.23021976]
[1758086151624,0.03,234.5,234.49,39.23021976]
[1758086151807,0.03,234.5,234.49,38.48545062]
[1758086152199,0.03,234.5,234.49,39.44977376]
[1758086152808,0.03,234.5,234.49,38.76977376]
[1758086153316,0.03,234.5,234.49,53.04536777]
[1758086155629,0.03,234.5,234.49,39.44977376]
[1758086155830,0.03,234.5,234.49,53.04536777]
[1758086158305,0.03,234.5,234.49,19.46536777]
[1758086158632,0.03,234.5,234.49,52.34536777]
[1758086159010,0.03,234.5,234.49,53.02536777]
[1758086165535,1e-08,234.51,234.5,13.87991715]
[1758086165739,1e-08,234.51,234.5,15.20079359]
[1758086167041,1e-08,234.51,234.5,48.08079359]
[1758086167416,1e-08,234.51,234.5,52.34518591]
[1758086170433,0.66000001,234.51,234.5,38.46526876]
[1758086170930,0.66000001,234.51,234.5,38.7495919]
[1758086173243,0.66000001,234.51,234.5,38.46526876]
[1758086173430,0.66000001,234.51,234.5,58.88]
[1758086174227,0.66000001,234.51,234.5,63.14439232]
[1758086175341,0.66000001,234.51,234.5,64.46526876]
[1758086176435,0.66000001,234.51,234.5,58.88]
[1758086177017,0.66000001,234.51,234.5,63.14439232]
[1758086177218,0.66000001,234.51,234.5,64.46526876]
[1758086179842,0.66000001,234.51,234.5,63.14439232]
[1758086180044,0.66000001,234.51,234.5,64.46526876]
[1758086181320,1e-08,234.51,234.5,64.46526876]
[1758086185046,1e-08,234.51,234.5,60.20087644]
[1758086185248,1e-08,234.51,234.5,64.46526876]
[1758086188658,1e-08,234.51,234.5,65.12526876]
[1758086189331,1e-08,234.51,234.5,64.46526876]
[1758086193864,1e-08,234.51,234.5,64.7495919]
[1758086195762,1e-08,234.51,234.5,38.7495919]
[1758086196154,1e-08,234.51,234.5,38.7295919]
[1758086196865,1e-08,234.51,234.5,27.32087644]
[1758086197071,0.66000001,234.51,234.5,58.86]
[1758086197646,1e-08,234.51,234.5,60.18087644]
[1758086198547,1e-08,234.51,234.5,65.10526876]
[1758086199666,1e-08,234.51,234.5,65.16526876]
[1758086199870,1e-08,234.51,234.5,65.4495919]
[1758086201977,1e-08,234.51,234.5,31.9295919]
[1758086202278,1e-08,234.51,234.5,64.7895919]
[1758086203174,1e-08,234.51,234.5,63.46871546]
[1758086203671,1e-08,234.51,234.5,64.7895919]
[1758086204458,1e-08,234.51,234.5,65.4495919]
[1758086204660,1e-08,234.51,234.5,64.7895919]
[1758086206484,1e-08,234.51,234.5,65.4495919]
[1758086207154,1e-08,234.51,234.5,32.5895919]
[1758086207354,1e-08,234.51,234.5,65.4295919]
[1758086211782,1e-08,234.51,234.5,33.33220398]
[1758086211981,1e-08,234.51,234.5,66.17220398]
[1758086217296,1e-08,234.51,234.5,65.51220398]
[1758086217672,1e-08,234.51,234.5,63.44871546]
[1758086217892,1e-08,234.51,234.5,65.51220398]
[1758086220388,1e-08,234.51,234.5,66.17220398]
[1758086220981,0.67000001,234.51,234.5,0.06]
[1758086221176,0.67000001,234.51,234.5,58.9]
[1758086223683,0.67000001,234.51,234.5,32.9]
[1758086224101,1e-08,234.51,234.5,40.17220398]
[1758086224911,1e-08,234.51,234.5,53.76779799]
[1758086225329,1e-08,234.51,234.5,40.17220398]
[1758086226989,1e-08,234.51,234.5,38.10871546]
[1758086227323,1e-08,234.51,234.5,39.22788084]
[1758086229431,1e-08,234.51,234.5,53.76779799]
[1758086231725,1e-08,234.51,234.5,55.83128651]
[1758086231928,1e-08,234.51,234.5,53.76779799]
[1758086232427,0.03,234.53,234.52,39.59559401]
[1758086232731,0.03,234.53,234.52,76.82689419]
[1758086232912,0.03,234.53,234.52,77.48689419]
[1758086233809,0.03,234.53,234.52,81.75092284]
[1758086235930,0.03,234.53,234.52,79.68743432]
[1758086236727,0.03,234.53,234.52,81.75092284]
[1758086237744,0.03,234.53,234.52,79.02743432]
[1758086238229,0.03,234.53,234.52,79.68743432]
[1758086245529,0.03,234.53,234.52,81.75092284]
[1758086247227,0.03,234.53,234.52,81.73092284]
[1758086248429,0.03,234.53,234.52,79.66743432]
[1758086249537,0.03,234.53,234.52,81.73092284]
[1758086251839,0.03,234.53,234.52,76.9439458]
[1758086252025,0.03,234.53,234.52,79.00743432]
[1758086252536,0.03,234.53,234.52,46.20743432]
[1758086252739,0.03,234.53,234.52,79.00743432]
[1758086253743,0.03,234.53,234.52,79.67743432]
[1758086260543,0.03,234.53,234.52,0.67]
[1758086260742,0.03,234.53,234.52,32.8]
[1758086260743,0.73,234.53,234.52,32.8]
[1758086262236,0.73,234.53,234.51,2.12348852]
[1758086262542,0.7,234.52,234.51,0.06]
[1758086262746,0.7,234.52,234.51,32.86]
[1758086272555,0.7,234.52,234.51,0.06]
[1758086272731,0.7,234.52,234.51,32.86]
[1758086276759,0.03,234.53,234.51,38.44515596]
[1758086276966,0.03,234.53,234.51,37.12421048]
[1758086277140,0.03,234.53,234.51,39.15515596]
[1758086278362,0.03,234.53,234.51,38.44515596]
[1758086280462,0.03,234.53,234.51,39.15515596]
[1758086280680,0.03,234.53,234.52,0.71]
[1758086281164,0.03,234.53,234.52,0.99432314]
[1758086282270,0.03,234.53,234.52,6.57929727]
[1758086283350,0.03,234.53,234.52,0.71]
[1758086283544,0.03,234.53,234.51,0.06]
[1758086283545,0.69,234.53,234.51,0.06]
[1758086283880,0.66,234.52,234.51,0.06]
[1758086284083,1.98094548,234.52,234.51,0.06]
[1758086284466,6.24497413,234.52,234.5,0.06]
[1758086285354,14.91653949,234.51,234.5,0.06]
[1758086285557,14.91653949,234.51,234.49,1e-08]
[1758086285558,13.87991715,234.5,234.49,1e-08]
[1758086285775,14.53991715,234.5,234.49,1e-08]
[1758086286471,18.80430947,234.5,234.49,1e-08]
[1758086286873,13.59559401,234.48,234.46,0.06]
[1758086287076,73.69653949,234.47,234.46,0.06]
[1758086287278,74.35653949,234.47,234.46,0.06]
[1758086288383,17.86071385,234.46,234.37,0.06]
[1758086288751,19.84165933,234.46,234.37,0.06]
[1758086290280,39.02606532,234.46,234.38,0.77]
[1758086290478,4.26488406,234.48,234.43,0.71]
[1758086290984,136.62488406,234.48,234.43,0.71]
[1758086291168,0.66,234.47,234.43,0.77]
[1758086291983,0.66,234.47,234.43,0.06]
[1758086292577,4.92505718,234.47,234.43,0.06]
[1758086292757,4.26505718,234.47,234.43,0.06]
[1758086293080,4.92505718,234.47,234.43,0.06]
[1758086294283,60.78094548,234.46,234.43,0.06]
[1758086295471,74.37653949,234.46,234.43,0.06]
[1758086296581,26.0,234.43,234.42,0.06]
[1758086296789,60.12094548,234.43,234.42,0.06]
[1758086296984,74.37653949,234.43,234.42,0.06]
[1758086297887,14.91653949,234.42,234.41,0.06]
[1758086298465,15.57653949,234.42,234.41,0.06]
[1758086299380,15.57653949,234.42,234.41,1e-08]
[1758086299777,15.57653949,234.42,234.37,0.06]
[1758086299778,13.59559401,234.4,234.37,0.06]
[1758086299975,34.12094548,234.39,234.37,0.06]
[1758086300187,34.78094548,234.39,234.37,0.06]
[1758086300990,39.04733909,234.39,234.37,0.06]
[1758086301194,65.04733909,234.39,234.37,0.06]
[1758086301568,78.6429331,234.39,234.37,0.06]
[1758086302980,77.32198762,234.39,234.37,0.06]
[1758086303179,79.96387858,234.39,234.37,0.06]
[1758086303377,78.6429331,234.39,234.37,0.06]
[1758086305875,78.6429331,234.39,234.38,1e-08]
[1758086306078,79.96387858,234.39,234.38,1e-08]
[1758086306583,54.24820172,234.39,234.38,1e-08]
[1758086307888,13.59559401,234.37,234.35,0.06]
[1758086308095,47.71653949,234.37,234.35,0.06]
[1758086308271,48.41653949,234.37,234.35,0.06]
[1758086309197,19.18329718,234.37,234.35,0.06]
[1758086309509,52.00329718,234.37,234.35,0.06]
[1758086310222,52.02329718,234.37,234.35,0.06]
[1758086311603,4.26675769,234.37,234.36,0.77]
[1758086311891,3.54959741,234.4,234.36,0.77]
[1758086311892,32.84,234.38,234.36,0.77]
[1758086312892,32.84,234.38,234.37,0.71]
[1758086313714,32.84,234.39,234.37,0.71]
[1758086314010,32.84,234.39,234.36,0.06]
[1758086314314,32.84,234.39,234.38,0.71]
[1758086314608,33.54,234.39,234.36,0.06]
[1758086314816,32.84,234.39,234.36,0.06]
[1758086315607,2.02094548,234.38,234.36,0.06]
[1758086315920,37.10675769,234.37,234.36,0.06]
[1758086319092,37.10675769,234.37,234.36,0.77]
[1758086319479,4.26675769,234.37,234.36,0.77]
[1758086320999,4.26675769,234.37,234.36,0.06]
[1758086326191,32.82,234.38,234.36,0.77]
[1758086326613,32.82,234.38,234.37,0.71]
[1758086326913,37.08666971,234.38,234.37,0.71]
[1758086327113,4.26666971,234.38,234.37,0.71]
[1758086327321,37.08666971,234.38,234.37,0.71]
[1758086327524,37.08666971,234.38,234.36,0.06]
[1758086327726,37.08666971,234.38,234.36,0.77]
[1758086328024,37.08666971,234.38,234.36,0.06]
[1758086328724,0.03,234.37,234.36,0.06]
[1758086330734,0.03,234.4,234.36,6.35778678]
[1758086330937,0.03,234.4,234.39,1.32094548]
[1758086331403,0.03,234.4,234.39,2.03094548]
[1758086335842,0.03,234.4,234.39,2.77563283]
[1758086340388,0.03,234.4,234.39,3.05995597]
[1758086340590,0.03,234.4,234.39,16.65554998]
[1758086342993,0.03,234.4,234.39,35.91995597]
[1758086346184,0.03,234.4,234.39,3.05995597]
[1758086346387,0.03,234.4,234.39,35.89995597]
[1758086346700,0.03,234.4,234.39,34.90563283]
[1758086347371,0.03,234.4,234.39,35.56563283]
[1758086348392,0.03,234.4,234.37,0.06]
[1758086348698,0.69,234.39,234.37,0.06]
[1758086348865,0.69,234.38,234.37,0.06]
[1758086349796,0.72,234.4,234.37,0.06]
[1758086351791,4.98624826,234.4,234.37,0.06]
[1758086352204,0.72,234.4,234.37,0.06]
[1758086352891,0.03,234.4,234.37,0.72]
[1758086353368,0.03,234.4,234.37,0.06]
[1758086353795,0.72,234.4,234.37,0.06]
[1758086354182,0.03,234.4,234.37,2.78563283]
[1758086355097,0.03,234.4,234.38,2.06563283]
[1758086355818,0.03,234.4,234.37,2.78563283]
[1758086356987,4.7346122,234.42,234.37,2.78563283]
[1758086358108,4.7346122,234.42,234.38,2.06563283]
[1758086359584,4.29566565,234.43,234.38,2.06563283]
[1758086359895,4.98566565,234.43,234.38,2.72563283]
[1758086360419,0.03,234.43,234.4,2.06563283]
[1758086360714,0.03,234.43,234.42,2.06563283]
[1758086361610,0.03,234.43,234.4,0.66]
[1758086361814,0.03,234.43,234.41,2.06563283]
[1758086362609,0.03,234.43,234.42,2.06563283]
[1758086362788,0.03,234.43,234.38,32.8]
[1758086362988,0.72,234.43,234.39,2.06563283]
[1758086363196,0.72,234.43,234.39,2.72563283]
[1758086363401,0.72,234.43,234.4,2.06563283]
[1758086363612,0.03,234.43,234.41,2.06563283]
[1758086363785,0.03,234.43,234.42,2.72563283]
[1758086367801,0.03,234.43,234.42,2.06563283]
[1758086368198,0.03,234.43,234.42,2.73563283]
[1758086368613,0.03,234.43,234.37,0.06]
[1758086368916,0.03,234.43,234.41,2.06563283]
[1758086369119,0.65,234.42,234.37,0.06]
[1758086369327,2.06563283,234.38,234.37,0.06]
[1758086369494,2.71563283,234.38,234.37,0.06]
[1758086369993,4.26657564,234.38,234.37,0.06]
[1758086371817,4.91657564,234.38,234.37,0.06]
[1758086372212,4.26657564,234.38,234.37,0.06]
[1758086373908,4.91657564,234.38,234.37,0.06]
[1758086374524,6.98220847,234.38,234.37,0.06]
[1758086382757,6.98220847,234.38,234.36,1e-08]
[1758086383022,60.88563283,234.37,234.36,1e-08]
[1758086383401,61.53563283,234.37,234.36,1e-08]
[1758086384708,13.59559401,234.36,234.34,0.06]
[1758086384910,28.06563283,234.32,234.26,0.2]
[1758086385129,2.06563283,234.28,234.26,0.2]
[1758086387208,37.12820227,234.3,234.27,0.87]
[1758086387636,37.12820227,234.3,234.28,0.67]
[1758086388041,4.26820227,234.3,234.29,0.67]
[1758086388244,37.12780944,234.32,234.29,0.67]
[1758086388426,4.26780944,234.32,234.29,0.67]
[1758086388938,4.26780944,234.32,234.27,2.26563283]
[1758086389117,4.26780944,234.32,234.3,0.67]
[1758086389512,4.26780944,234.32,234.27,2.26563283]
[1758086389740,4.26780944,234.32,234.28,0.67]
[1758086390639,4.26780944,234.32,234.29,0.67]
[1758086391138,17.00261263,234.32,234.27,0.2]
[1758086391327,2.06563283,234.31,234.27,0.87]
[1758086391836,17.00261263,234.32,234.28,0.67]
[1758086392041,4.26780944,234.32,234.29,0.67]
[1758086392239,32.88,234.33,234.3,0.67]
[1758086392417,4.2675142,234.33,234.31,0.67]
[1758086392738,135.96725257,234.35,234.32,0.67]
[1758086393447,131.7,234.35,234.33,2.73563283]
[1758086393619,131.7,234.35,234.34,0.67]
[1758086394241,32.88,234.38,234.34,2.73563283]
[1758086394542,4.26680297,234.37,234.35,0.67]
[1758086395346,4.26680297,234.37,234.35,0.72]
[1758086398050,4.29680297,234.37,234.35,0.72]
[1758086398542,4.29680297,234.37,234.32,1.32296869]
[1758086398718,4.29680297,234.37,234.28,4.55256267]
[1758086398719,0.03,234.37,234.33,0.72]
[1758086399242,0.03,234.37,234.34,0.72]
[1758086399627,0.03,234.37,234.35,0.72]
[1758086400445,0.03,234.37,234.31,1.32296869]
[1758086400628,0.03,234.37,234.32,0.72]
[1758086401137,0.03,234.37,234.33,0.72]
[1758086402236,0.03,234.37,234.34,0.72]
[1758086402639,0.03,234.37,234.36,1.32296869]
[1758086403124,0.03,234.37,234.36,2.04296869]
[1758086405448,0.03,234.37,234.36,6.30990844]
[1758086406248,0.03,234.37,234.36,2.04296869]
[1758086406828,0.03,234.37,234.33,0.72]
[1758086407050,0.03,234.37,234.33,2.04296869]
[1758086407344,0.03,234.37,234.34,0.72]
[1758086407525,0.03,234.37,234.27,0.2]
[1758086407726,1.35296869,234.37,234.3,1.32296869]
[1758086407946,1.35296869,234.37,234.31,0.72]
[1758086408247,4.26693975,234.36,234.31,0.72]
[1758086408639,4.26693975,234.36,234.31,2.04296869]
[1758086408948,4.26693975,234.36,234.32,0.72]
[1758086409153,0.03,234.37,234.33,1.32296869]
[1758086409353,4.29676357,234.37,234.33,1.32296869]
[1758086409652,4.29676357,234.37,234.34,0.72]
[1758086410554,0.03,234.37,234.34,0.72]
[1758086410756,0.7,234.37,234.31,2.04296869]
[1758086411539,0.03,234.37,234.32,0.72]
[1758086411730,0.03,234.37,234.33,0.72]
[1758086412555,0.03,234.37,234.34,0.72]
[1758086413553,0.03,234.37,234.35,0.72]
[1758086414741,0.03,234.37,234.33,0.72]
[1758086416044,0.03,234.37,234.34,0.72]
[1758086417254,0.03,234.37,234.35,0.72]
[1758086422473,0.03,234.37,234.36,0.72]
[1758086422643,0.03,234.37,234.36,2.04296869]
[1758086424166,0.03,234.37,234.36,6.30990844]
[1758086424561,0.03,234.37,234.36,6.59423158]
[1758086424944,0.03,234.37,234.36,20.18982559]
[1758086425143,0.03,234.37,234.36,20.68982559]
[1758086425341,0.03,234.37,234.36,46.68982559]
[1758086425760,0.03,234.37,234.36,45.3668569]
[1758086425950,0.03,234.37,234.36,28.32729183]
[1758086426471,0.03,234.37,234.36,2.04296869]
[1758086427072,0.03,234.37,234.34,1.60729183]
[1758086427268,0.03,234.37,234.35,0.72]
[1758086427763,0.03,234.37,234.31,26.06]
[1758086427967,0.03,234.37,234.34,0.72]
[1758086429059,0.71,234.37,234.31,2.10296869]
[1758086429458,4.29675769,234.37,234.32,0.72]
[1758086429660,4.29675769,234.37,234.33,0.72]
[1758086431960,0.03,234.37,234.33,0.72]
[1758086434672,0.71,234.37,234.33,0.72]
[1758086434875,2.03296869,234.37,234.31,0.06]
[1758086435062,1.32296869,234.36,234.31,0.06]
[1758086435379,4.26730391,234.34,234.31,0.06]
[1758086435674,4.26730391,234.34,234.31,0.78]
[1758086436043,4.26730391,234.34,234.31,0.06]
[1758086436379,4.26730391,234.34,234.31,0.78]
[1758086436754,4.26730391,234.34,234.32,0.72]
[1758086437371,4.26693975,234.36,234.31,0.06]
[1758086437580,4.26693975,234.36,234.32,0.72]
[1758086437755,6.26990844,234.36,234.31,0.06]
[1758086438072,0.68,234.35,234.31,0.06]
[1758086438468,4.94730391,234.34,234.31,0.06]
[1758086438659,4.26730391,234.34,234.31,0.06]
[1758086438861,4.26730391,234.34,234.31,0.78]
[1758086439666,4.26712182,234.35,234.31,0.06]
[1758086439867,4.94712182,234.35,234.31,0.06]
[1758086440173,0.68,234.34,234.31,0.06]
[1758086440671,14.93492638,234.35,234.31,0.06]
[1758086441076,0.68,234.34,234.31,0.06]
[1758086441379,15.61492638,234.35,234.31,0.06]